[Event "HSG Open 2022 A"]
[Site "Hilversum, Netherlands"]
[Date "2022.06.17"]
[Round "2.11"]
[White "Zhu, Chenwu"]
[Black "Lanchava, Tea"]
[Result "0-1"]
[TimeControl "1:50 + 0.10"]
[WhiteElo "1972"]
[BlackElo "2231"]

1. e4 {[%clk 01:50:14]} {[%emt 00:00:07]} c6 {[%clk 01:50:06]} {[%emt
00:00:14]} 2. d4 {[%clk 01:50:16]} {[%emt 00:00:07]} g6 {[%clk 01:50:10]}
{[%emt 00:00:07]} 3. Nc3 {[%clk 01:49:52]} {[%emt 00:00:33]} Bg7 {[%clk
01:50:10]} {[%emt 00:00:09]} 4. f4 {[%clk 01:49:14]} {[%emt 00:00:48]} d5
{[%clk 01:50:09]} {[%emt 00:00:11]} 5. e5 {[%clk 01:48:29]} {[%emt 00:00:56]}
Nh6 {[%clk 01:49:56]} {[%emt 00:00:23]} 6. Nf3 {[%clk 01:47:17]} {[%emt
00:01:22]} Bg4 {[%clk 01:49:39]} {[%emt 00:00:26]} 7. Be2 {[%clk 01:42:16]}
{[%emt 00:05:11]} Nf5 {[%clk 01:48:18]} {[%emt 00:01:31]} 8. O-O {[%clk
01:36:25]} {[%emt 00:06:02]} h5 {[%clk 01:42:07]} {[%emt 00:06:21]} 9. Ne1
{[%clk 01:29:12]} {[%emt 00:07:22]} e6 {[%clk 01:37:47]} {[%emt 00:04:30]} 10.
Bxg4 {[%clk 01:24:43]} {[%emt 00:04:41]} hxg4 {[%clk 01:37:48]} {[%emt
00:00:08]} 11. g3 {[%clk 01:23:58]} {[%emt 00:00:55]} Qe7 {[%clk 01:35:45]}
{[%emt 00:02:12]} 12. Ne2 {[%clk 01:17:07]} {[%emt 00:07:02]} c5 {[%clk
01:32:02]} {[%emt 00:03:59]} 13. c3 {[%clk 01:15:24]} {[%emt 00:01:48]} Nc6
{[%clk 01:29:39]} {[%emt 00:04:59]} 14. Nc2 {[%clk 01:14:02]} {[%emt 00:00:07]}
Rc8 {[%clk 01:21:43]} {[%emt 00:07:05]} 15. Ne3 {[%clk 01:10:44]} {[%emt
00:03:28]} cxd4 {[%clk 01:20:35]} {[%emt 00:01:18]} 16. Nxf5 {[%clk 01:10:18]}
{[%emt 00:00:35]} gxf5 {[%clk 01:20:20]} {[%emt 00:00:26]} 17. Nxd4 {[%clk
01:10:12]} {[%emt 00:00:16]} Kf8 {[%clk 01:14:43]} {[%emt 00:05:47]} 18. Be3
{[%clk 01:07:16]} {[%emt 00:03:06]} Kg8 {[%clk 01:09:02]} {[%emt 00:05:51]} 19.
Nxc6 {[%clk 01:05:55]} {[%emt 00:01:31]} bxc6 {[%clk 01:06:21]} {[%emt
00:02:51]} 20. b4 {[%clk 01:05:11]} {[%emt 00:00:55]} f6 {[%clk 01:04:19]}
{[%emt 00:02:12]} 21. exf6 {[%clk 01:03:42]} {[%emt 00:01:38]} Bxf6 {[%clk
01:01:15]} {[%emt 00:03:14]} 22. Bd4 {[%clk 01:03:08]} {[%emt 00:00:44]} Rh3
{[%clk 01:00:23]} {[%emt 00:01:02]} 23. Bxf6 {[%clk 01:00:50]} {[%emt
00:02:28]} Qxf6 {[%clk 00:57:23]} {[%emt 00:03:11]} 24. Qd4 {[%clk 01:00:48]}
{[%emt 00:00:11]} Qh6 {[%clk 00:56:29]} {[%emt 00:01:03]} 25. Rf2 {[%clk
01:00:14]} {[%emt 00:00:46]} Rc7 {[%clk 00:56:09]} {[%emt 00:00:29]} 26. Qe5
{[%clk 00:58:56]} {[%emt 00:01:28]} Rh7 {[%clk 00:41:12]} {[%emt 00:15:08]} 27.
Qb8+ {[%clk 00:56:13]} {[%emt 00:02:51]} Qf8 {[%clk 00:40:53]} {[%emt
00:00:30]} 28. Qxf8+ {[%clk 00:56:16]} {[%emt 00:00:08]} Kxf8 {[%clk 00:41:02]}
{[%emt 00:00:01]} 29. Re1 {[%clk 00:55:25]} {[%emt 00:01:00]} Ke7 {[%clk
00:40:56]} {[%emt 00:00:15]} 30. Rfe2 {[%clk 00:54:49]} {[%emt 00:00:47]} R3h6
{[%clk 00:41:01]} {[%emt 00:00:05]} 31. Rb1 {[%clk 00:54:07]} {[%emt 00:00:53]}
Kd6 {[%clk 00:40:38]} {[%emt 00:00:32]} 32. Rbe1 {[%clk 00:53:52]} {[%emt
00:00:26]} Rc7 {[%clk 00:40:15]} {[%emt 00:00:32]} 33. Rb1 {[%clk 00:52:36]}
{[%emt 00:01:26]} Rhh7 {[%clk 00:36:09]} {[%emt 00:04:17]} 34. Rbe1 {[%clk
00:52:25]} {[%emt 00:00:21]} Rhe7 {[%clk 00:36:00]} {[%emt 00:00:18]} 35. Kg2
{[%clk 00:51:06]} {[%emt 00:01:30]} c5 {[%clk 00:35:54]} {[%emt 00:00:15]} 36.
b5 {[%clk 00:50:16]} {[%emt 00:01:00]} Rb7 {[%clk 00:33:09]} {[%emt 00:02:55]}
37. a4 {[%clk 00:47:37]} {[%emt 00:02:49]} c4 {[%clk 00:32:02]} {[%emt
00:01:17]} 38. Rb1 {[%clk 00:42:43]} {[%emt 00:05:05]} Kc5 {[%clk 00:31:00]}
{[%emt 00:01:12]} 39. Rbb2 {[%clk 00:40:13]} {[%emt 00:02:40]} Rb6 {[%clk
00:30:12]} {[%emt 00:00:57]} 40. h4 {[%clk 00:38:55]} {[%emt 00:01:29]} gxh3+
{[%clk 00:30:16]} {[%emt 00:00:06]} 41. Kxh3 {[%clk 00:38:59]} {[%emt
00:00:05]} Rh7+ {[%clk 00:27:18]} {[%emt 00:03:08]} 42. Kg2 {[%clk 00:38:55]}
{[%emt 00:00:15]} Rhb7 {[%clk 00:26:29]} {[%emt 00:00:58]} 43. Rb4 {[%clk
00:37:12]} {[%emt 00:01:53]} Rd6 {[%clk 00:24:21]} {[%emt 00:02:17]} 44. Rbb2
{[%clk 00:31:45]} {[%emt 00:05:38]} a6 {[%clk 00:24:10]} {[%emt 00:00:21]} 45.
bxa6 {[%clk 00:30:41]} {[%emt 00:01:14]} Rxb2 {[%clk 00:24:15]} {[%emt
00:00:05]} 46. Rxb2 {[%clk 00:30:48]} {[%emt 00:00:04]} Rxa6 {[%clk 00:24:16]}
{[%emt 00:00:09]} 47. Rb5+ {[%clk 00:30:51]} {[%emt 00:00:06]} Kc6 {[%clk
00:24:15]} {[%emt 00:00:11]} 48. Rb4 {[%clk 00:30:38]} {[%emt 00:00:24]} Ra5
{[%clk 00:23:38]} {[%emt 00:00:46]} 49. Kf3 {[%clk 00:27:16]} {[%emt 00:03:31]}
Kc5 {[%clk 00:20:31]} {[%emt 00:03:18]} 50. Ke3 {[%clk 00:26:22]} {[%emt
00:01:05]} d4+ {[%clk 00:19:55]} {[%emt 00:00:46]} 51. Kd2 {[%clk 00:26:27]}
{[%emt 00:00:05]} d3 {[%clk 00:18:55]} {[%emt 00:01:09]} 52. Ke3 {[%clk
00:26:09]} {[%emt 00:00:28]} Kd5 {[%clk 00:18:47]} {[%emt 00:00:16]} 53. Kd2
{[%clk 00:25:03]} {[%emt 00:01:18]} Ra7 {[%clk 00:18:10]} {[%emt 00:00:45]} 54.
Rb5+ {[%clk 00:24:54]} {[%emt 00:00:21]} Kc6 {[%clk 00:15:54]} {[%emt
00:02:25]} 55. Rb4 {[%clk 00:24:49]} {[%emt 00:00:17]} Kd5 {[%clk 00:14:33]}
{[%emt 00:01:30]} 56. Rb5+ {[%clk 00:24:48]} {[%emt 00:00:11]} Ke4 {[%clk
00:14:05]} {[%emt 00:00:38]} 57. Rb4 {[%clk 00:23:12]} {[%emt 00:01:46]} Rc7
{[%clk 00:13:50]} {[%emt 00:00:25]} 58. Rb6 {[%clk 00:19:19]} {[%emt 00:04:03]}
Kf3 {[%clk 00:12:07]} {[%emt 00:01:54]} 59. Rxe6 {[%clk 00:18:57]} {[%emt
00:00:31]} Ra7 {[%clk 00:11:23]} {[%emt 00:00:54]} 60. Rf6 {[%clk 00:16:17]}
{[%emt 00:02:51]} Rxa4 {[%clk 00:11:24]} {[%emt 00:00:08]} 61. Rxf5 {[%clk
00:16:20]} {[%emt 00:00:07]} Ra2+ {[%clk 00:11:26]} {[%emt 00:00:09]} 62. Kd1
{[%clk 00:15:21]} {[%emt 00:01:09]} Rc2 {[%clk 00:11:26]} {[%emt 00:00:09]} 63.
Re5 {[%clk 00:13:14]} {[%emt 00:02:18]} Rxc3 {[%clk 00:11:29]} {[%emt
00:00:06]} 64. f5 {[%clk 00:13:16]} {[%emt 00:00:09]} Ra3 {[%clk 00:09:43]}
{[%emt 00:01:56]} 65. Kc1 {[%clk 00:07:41]} {[%emt 00:05:45]} c3 {[%clk
00:09:21]} {[%emt 00:00:32]} 66. Kb1 {[%clk 00:07:15]} {[%emt 00:00:36]} c2+
{[%clk 00:07:44]} {[%emt 00:01:46]} 67. Kb2 {[%clk 00:06:59]} {[%emt 00:00:25]}
Ra2+ {[%clk 00:07:36]} {[%emt 00:00:19]} 0-1

[Event "HSG Open 2022 A"]
[Site "Hilversum, Netherlands"]
[Date "2022.06.17"]
[Round "2.12"]
[White "Dekker, Jasper"]
[Black "Tabak, Stefan"]
[Result "0-1"]
[TimeControl "1:50 + 0.10"]
[WhiteElo "1860"]
[BlackElo "2164"]

1. e4 {[%clk 01:50:17]} {[%emt 00:00:02]} c5 {[%clk 01:50:16]} {[%emt
00:00:04]} 2. c3 {[%clk 01:50:08]} {[%emt 00:00:19]} e5 {[%clk 01:46:15]}
{[%emt 00:04:11]} 3. Nf3 {[%clk 01:48:52]} {[%emt 00:01:26]} Nf6 {[%clk
01:40:33]} {[%emt 00:05:51]} 4. Nxe5 {[%clk 01:43:39]} {[%emt 00:05:24]} Qe7
{[%clk 01:40:19]} {[%emt 00:00:23]} 5. d4 {[%clk 01:43:40]} {[%emt 00:00:10]}
Nc6 {[%clk 01:38:17]} {[%emt 00:02:11]} 6. Bd3 {[%clk 01:39:20]} {[%emt
00:04:30]} cxd4 {[%clk 01:27:34]} {[%emt 00:10:54]} 7. Nxc6 {[%clk 01:35:01]}
{[%emt 00:04:29]} dxc6 {[%clk 01:26:19]} {[%emt 00:01:25]} 8. cxd4 {[%clk
01:33:55]} {[%emt 00:01:17]} Qb4+ {[%clk 01:14:21]} {[%emt 00:12:07]} 9. Bd2
{[%clk 01:29:38]} {[%emt 00:07:27]} Qxd4 {[%clk 01:14:15]} 10. Bc3 {[%clk
01:29:41]} Bb4 {[%clk 01:13:02]} {[%emt 00:00:03]} 11. O-O {[%clk 01:27:06]}
{[%emt 00:01:29]} Bxc3 {[%clk 01:13:00]} {[%emt 00:00:12]} 12. Nxc3 {[%clk
01:27:05]} {[%emt 00:00:10]} Bg4 {[%clk 01:06:52]} {[%emt 00:06:18]} 13. Qc2
{[%clk 01:09:28]} {[%emt 00:17:47]} Rd8 {[%clk 00:56:32]} {[%emt 00:10:30]} 14.
e5 {[%clk 00:56:51]} {[%emt 00:12:48]} Qxd3 {[%clk 00:54:50]} {[%emt 00:01:52]}
15. Qxd3 {[%clk 00:56:54]} {[%emt 00:00:07]} Rxd3 {[%clk 00:54:55]} {[%emt
00:00:04]} 16. exf6 {[%clk 00:56:57]} {[%emt 00:00:07]} gxf6 {[%clk 00:48:50]}
{[%emt 00:06:15]} 17. Ne4 {[%clk 00:54:08]} {[%emt 00:03:00]} Ke7 {[%clk
00:45:11]} {[%emt 00:03:48]} 18. Rae1 {[%clk 00:49:37]} {[%emt 00:04:41]} Be6
{[%clk 00:44:50]} {[%emt 00:00:31]} 19. f4 {[%clk 00:44:42]} {[%emt 00:05:05]}
f5 {[%clk 00:44:05]} {[%emt 00:00:55]} 20. Nc3 {[%clk 00:39:48]} {[%emt
00:05:04]} Rhd8 {[%clk 00:39:12]} {[%emt 00:05:04]} 21. Rf2 {[%clk 00:38:43]}
{[%emt 00:01:15]} Kf6 {[%clk 00:37:20]} {[%emt 00:02:01]} 22. a3 {[%clk
00:34:52]} {[%emt 00:04:01]} a5 {[%clk 00:36:46]} {[%emt 00:00:43]} 23. g3
{[%clk 00:33:59]} {[%emt 00:01:04]} b5 {[%clk 00:36:30]} {[%emt 00:00:25]} 24.
Rc1 {[%clk 00:33:31]} {[%emt 00:00:39]} Rd2 {[%clk 00:34:53]} {[%emt 00:01:46]}
25. Rc2 {[%clk 00:32:13]} {[%emt 00:01:29]} Rxf2 {[%clk 00:34:27]} {[%emt
00:00:36]} 26. Kxf2 {[%clk 00:31:38]} {[%emt 00:00:45]} Bb3 {[%clk 00:33:37]}
{[%emt 00:01:00]} 27. Re2 {[%clk 00:26:57]} {[%emt 00:04:51]} b4 {[%clk
00:32:28]} {[%emt 00:01:19]} 28. axb4 {[%clk 00:26:53]} {[%emt 00:00:14]} axb4
{[%clk 00:32:34]} {[%emt 00:00:04]} 29. Nb1 {[%clk 00:26:52]} {[%emt 00:00:11]}
c5 {[%clk 00:32:19]} {[%emt 00:00:25]} 30. Ke3 {[%clk 00:25:48]} {[%emt
00:01:15]} c4 {[%clk 00:27:27]} {[%emt 00:05:02]} 31. Rd2 {[%clk 00:22:57]}
{[%emt 00:03:00]} Re8+ {[%clk 00:26:55]} {[%emt 00:00:42]} 32. Kf2 {[%clk
00:23:06]} {[%emt 00:00:02]} Ba2 {[%clk 00:21:04]} {[%emt 00:06:00]} 33. Rd1
{[%clk 00:23:15]} {[%emt 00:00:01]} Rc8 {[%clk 00:18:04]} {[%emt 00:03:09]} 34.
Ke3 {[%clk 00:23:00]} {[%emt 00:00:26]} Re8+ {[%clk 00:16:12]} {[%emt
00:02:02]} 35. Kf2 {[%clk 00:23:08]} {[%emt 00:00:02]} Ra8 {[%clk 00:14:56]}
{[%emt 00:01:26]} 36. Ke3 {[%clk 00:20:21]} {[%emt 00:02:58]} Bb3 {[%clk
00:14:03]} {[%emt 00:01:03]} 37. Rd6+ {[%clk 00:19:12]} {[%emt 00:01:19]} Ke7
{[%clk 00:08:50]} {[%emt 00:05:23]} 38. Rb6 {[%clk 00:19:16]} {[%emt 00:00:06]}
Ba2 {[%clk 00:08:33]} {[%emt 00:00:27]} 39. Nd2 {[%clk 00:17:47]} {[%emt
00:01:39]} c3 {[%clk 00:08:40]} {[%emt 00:00:03]} 40. bxc3 {[%clk 00:17:27]}
{[%emt 00:00:29]} bxc3 {[%clk 00:08:45]} {[%emt 00:00:05]} 41. Nb3 {[%clk
00:15:15]} {[%emt 00:02:21]} c2 {[%clk 00:05:44]} {[%emt 00:03:11]} 42. Kd2
{[%clk 00:12:47]} {[%emt 00:02:38]} Rc8 {[%clk 00:03:05]} {[%emt 00:02:49]} 43.
Kc1 {[%clk 00:10:46]} {[%emt 00:02:11]} Rc4 {[%clk 00:03:14]} 44. Na5 {[%clk
00:09:54]} {[%emt 00:01:04]} Rc3 {[%clk 00:03:15]} {[%emt 00:00:10]} 45. Nc6+
{[%clk 00:09:47]} {[%emt 00:00:16]} Kf8 {[%clk 00:03:21]} {[%emt 00:00:05]} 46.
Nd4 {[%clk 00:09:25]} {[%emt 00:00:31]} Bb1 {[%clk 00:03:08]} {[%emt 00:00:23]}
47. Nxf5 {[%clk 00:09:30]} {[%emt 00:00:05]} Ke8 {[%clk 00:02:59]} {[%emt
00:00:20]} 48. Nd6+ {[%clk 00:08:38]} {[%emt 00:01:01]} Ke7 {[%clk 00:02:45]}
{[%emt 00:00:25]} 49. Nf5+ {[%clk 00:08:17]} {[%emt 00:00:31]} Kd7 {[%clk
00:02:52]} {[%emt 00:00:03]} 50. Rd6+ {[%clk 00:06:43]} {[%emt 00:01:44]} Kc7
{[%clk 00:03:01]} 51. Rd2 {[%clk 00:06:28]} {[%emt 00:00:25]} Rf3 {[%clk
00:03:10]} 52. Rxc2+ {[%clk 00:05:04]} {[%emt 00:01:35]} Bxc2 {[%clk 00:03:18]}
{[%emt 00:00:02]} 53. Kxc2 {[%clk 00:05:14]} Rf2+ {[%clk 00:03:01]} {[%emt
00:00:27]} 54. Kd3 {[%clk 00:05:20]} {[%emt 00:00:03]} Rxh2 {[%clk 00:03:10]}
{[%emt 00:00:01]} 55. Ke4 {[%clk 00:04:56]} {[%emt 00:00:33]} Kd7 {[%clk
00:03:15]} {[%emt 00:00:06]} 56. Kf3 {[%clk 00:03:57]} {[%emt 00:01:09]} Ke6
{[%clk 00:03:09]} {[%emt 00:00:16]} 57. Kg4 {[%clk 00:04:03]} {[%emt 00:00:04]}
Ra2 {[%clk 00:02:45]} {[%emt 00:00:34]} 58. Ng7+ {[%clk 00:03:48]} {[%emt
00:00:25]} Kf6 {[%clk 00:02:45]} {[%emt 00:00:10]} 59. Nh5+ {[%clk 00:03:57]}
{[%emt 00:00:01]} Kg6 {[%clk 00:02:14]} {[%emt 00:00:41]} 60. f5+ {[%emt
00:00:08]} Kh6 61. Nf4 {[%clk 00:03:26]} {[%emt 00:00:44]} Ra4 {[%clk
00:02:33]} 62. f6 {[%clk 00:02:58]} {[%emt 00:00:37]} Rb4 {[%clk 00:02:29]}
{[%emt 00:00:13]} 63. Kf5 {[%clk 00:03:05]} {[%emt 00:00:04]} Rb5+ {[%clk
00:02:33]} {[%emt 00:00:06]} 64. Ke4 {[%clk 00:02:57]} {[%emt 00:00:18]} Kg5
{[%clk 00:02:35]} {[%emt 00:00:08]} 65. Nd5 {[%clk 00:02:27]} {[%emt 00:00:40]}
h6 {[%clk 00:02:19]} {[%emt 00:00:26]} 66. Nc3 {[%clk 00:02:07]} {[%emt
00:00:30]} Ra5 {[%clk 00:02:16]} {[%emt 00:00:14]} 67. Nd5 {[%clk 00:01:46]}
{[%emt 00:00:30]} Ra3 {[%clk 00:01:53]} {[%emt 00:00:33]} 68. Ne3 {[%clk
00:01:38]} {[%emt 00:00:19]} Kxf6 {[%clk 00:01:52]} {[%emt 00:00:10]} 69. Kf4
{[%clk 00:01:29]} {[%emt 00:00:19]} Ra4+ {[%clk 00:01:55]} {[%emt 00:00:07]} 70.
Kf3 {[%clk 00:01:32]} {[%emt 00:00:07]} Kg5 {[%clk 00:02:04]} {[%emt 00:00:01]}
71. Kg2 {[%clk 00:01:25]} {[%emt 00:00:17]} Ra3 {[%clk 00:02:09]} {[%emt
00:00:04]} 72. Nc2 {[%clk 00:01:27]} {[%emt 00:00:09]} Ra2 {[%clk 00:02:17]}
{[%emt 00:00:02]} 0-1

[ePGN "0.1;DGT LiveChess/2.2.5"]

[Event "HSG Open 2022 A"]
[Site "Hilversum, Netherlands"]
[Date "2022.06.18"]
[Round "3.1"]
[White "De Groote, Ewoud"]
[Black "Beerdsen, Thomas"]
[Result "0-1"]
[TimeControl "1:50 + 0.10"]
[WhiteElo "2233"]
[BlackElo "2494"]

1. d4 {[%clk 01:50:12]} {[%emt 00:00:07]} Nf6 {[%clk 01:50:11]} {[%emt
00:00:09]} 2. c4 {[%clk 01:50:15]} {[%emt 00:00:08]} e6 {[%clk 01:50:15]}
{[%emt 00:00:06]} 3. Nf3 {[%clk 01:50:22]} {[%emt 00:00:05]} c5 {[%clk
01:50:17]} {[%emt 00:00:08]} 4. d5 {[%clk 01:49:33]} {[%emt 00:00:57]} b5
{[%clk 01:50:14]} {[%emt 00:00:12]} 5. dxe6 {[%clk 01:48:05]} {[%emt 00:01:39]}
fxe6 {[%clk 01:50:17]} {[%emt 00:00:06]} 6. cxb5 {[%clk 01:47:34]} {[%emt
00:00:44]} d5 {[%clk 01:50:14]} {[%emt 00:00:10]} 7. e3 {[%clk 01:43:31]}
{[%emt 00:04:14]} Bd6 {[%clk 01:49:46]} {[%emt 00:00:37]} 8. Nbd2 {[%clk
01:41:47]} {[%emt 00:01:55]} Bb7 {[%clk 01:47:57]} {[%emt 00:01:59]} 9. b3
{[%clk 01:40:41]} {[%emt 00:01:16]} Nbd7 {[%clk 01:47:07]} {[%emt 00:00:59]} 10.
Bb2 {[%clk 01:35:11]} {[%emt 00:05:41]} O-O {[%clk 01:46:56]} {[%emt 00:00:20]}
11. Be2 {[%clk 01:29:15]} {[%emt 00:06:07]} e5 {[%clk 01:46:39]} {[%emt
00:00:26]} 12. Nc4 {[%clk 01:07:45]} {[%emt 00:21:41]} Bc7 {[%clk 01:46:28]}
{[%emt 00:00:19]} 13. Ncxe5 {[%clk 00:59:27]} {[%emt 00:08:29]} Nxe5 {[%clk
01:46:18]} {[%emt 00:00:20]} 14. Nxe5 {[%clk 00:53:45]} {[%emt 00:05:54]} Ba5+
{[%clk 01:46:20]} {[%emt 00:00:07]} 15. Kf1 {[%clk 00:53:06]} {[%emt 00:00:49]}
Ne4 {[%clk 01:46:23]} {[%emt 00:00:06]} 16. Nf3 {[%clk 00:48:26]} {[%emt
00:04:51]} Qe7 {[%clk 01:38:42]} {[%emt 00:07:50]} 17. Qd3 {[%clk 00:38:45]}
{[%emt 00:09:51]} d4 {[%clk 01:36:26]} {[%emt 00:02:26]} 18. exd4 {[%clk
00:31:25]} {[%emt 00:07:31]} Rxf3 {[%clk 01:35:06]} {[%emt 00:01:29]} 19. Bxf3
{[%clk 00:22:26]} {[%emt 00:09:10]} Nd2+ {[%clk 01:35:07]} {[%emt 00:00:08]} 20.
Kg1 {[%clk 00:22:08]} {[%emt 00:00:30]} Bxf3 {[%clk 01:33:36]} {[%emt
00:01:40]} 21. h4 {[%clk 00:18:26]} {[%emt 00:03:51]} Be2 {[%clk 01:18:46]}
{[%emt 00:14:59]} 22. Qg3 {[%clk 00:14:41]} {[%emt 00:03:57]} Bxb5 {[%clk
01:05:46]} {[%emt 00:13:07]} 23. dxc5 {[%clk 00:13:06]} {[%emt 00:01:47]} Rf8
{[%clk 01:02:22]} {[%emt 00:03:33]} 24. Bd4 {[%clk 00:09:40]} {[%emt 00:03:37]}
Bc7 {[%clk 01:00:03]} {[%emt 00:02:29]} 25. Qg5 {[%clk 00:07:50]} {[%emt
00:02:01]} Qxg5 {[%clk 00:59:43]} {[%emt 00:00:29]} 26. hxg5 {[%clk 00:07:59]}
{[%emt 00:00:02]} Ne4 {[%clk 00:50:33]} {[%emt 00:09:19]} 27. c6 {[%clk
00:07:42]} {[%emt 00:00:28]} a5 {[%clk 00:47:09]} {[%emt 00:03:33]} 28. Be3
{[%clk 00:06:54]} {[%emt 00:00:58]} Be5 {[%clk 00:46:08]} {[%emt 00:01:11]} 29.
Re1 {[%clk 00:03:06]} {[%emt 00:03:59]} Bxc6 {[%clk 00:44:43]} {[%emt
00:01:35]} 30. Rh4 {[%clk 00:02:30]} {[%emt 00:00:45]} Bb8 {[%clk 00:36:57]}
{[%emt 00:07:55]} 31. Bb6 {[%clk 00:02:08]} {[%emt 00:00:34]} Nxg5 {[%clk
00:36:41]} {[%emt 00:00:25]} 32. Bxa5 {[%clk 00:01:55]} {[%emt 00:00:23]} Ba7
{[%clk 00:36:05]} {[%emt 00:00:46]} 33. Re2 {[%clk 00:01:39]} {[%emt 00:00:27]}
h6 {[%clk 00:34:29]} {[%emt 00:01:45]} 34. Be1 {[%clk 00:00:57]} {[%emt
00:00:53]} Rd8 {[%clk 00:33:48]} {[%emt 00:00:50]} 35. a4 {[%clk 00:00:36]}
{[%emt 00:00:32]} Rd1 {[%clk 00:33:14]} {[%emt 00:00:43]} 36. Rc4 {[%clk
00:00:26]} {[%emt 00:00:21]} Bd5 {[%clk 00:33:15]} {[%emt 00:00:08]} 37. Rc8+
{[%clk 00:00:28]} {[%emt 00:00:08]} Kh7 {[%clk 00:33:15]} {[%emt 00:00:09]} 38.
b4 {[%clk 00:00:28]} {[%emt 00:00:11]} Ne6 {[%clk 00:32:04]} {[%emt 00:01:21]}
39. Kh2 {[%clk 00:00:18]} {[%emt 00:00:21]} Nf4 {[%clk 00:31:33]} {[%emt
00:00:41]} 40. Re5 {[%clk 00:00:20]} {[%emt 00:00:08]} Bd4 {[%clk 00:31:13]}
{[%emt 00:00:30]} 0-1

[Event "HSG Open 2022 A"]
[Site "Hilversum, Netherlands"]
[Date "2022.06.18"]
[Round "3.2"]
[White "Lanchava, Tea"]
[Black "Gilmanov, Mansur"]
[Result "1-0"]
[TimeControl "1:50 + 0.10"]
[WhiteElo "2231"]
[BlackElo "2390"]

1. c4 {[%clk 01:50:17]} e5 {[%clk 01:44:39]} {[%emt 00:05:41]} 2. Nc3 {[%clk
01:50:12]} {[%emt 00:00:15]} Bb4 {[%clk 01:44:20]} {[%emt 00:00:29]} 3. Qc2
{[%clk 01:49:45]} {[%emt 00:00:36]} Nf6 {[%clk 01:38:45]} {[%emt 00:05:46]} 4.
Nf3 {[%clk 01:49:32]} {[%emt 00:00:23]} Bxc3 {[%clk 01:31:21]} {[%emt
00:07:34]} 5. Qxc3 {[%clk 01:48:49]} {[%emt 00:00:53]} d6 {[%clk 01:31:23]}
{[%emt 00:00:09]} 6. g3 {[%clk 01:47:41]} {[%emt 00:01:17]} Nc6 {[%clk
01:28:17]} {[%emt 00:03:17]} 7. Bg2 {[%clk 01:47:24]} {[%emt 00:00:25]} Bg4
{[%clk 01:23:26]} {[%emt 00:05:01]} 8. d3 {[%clk 01:44:43]} {[%emt 00:02:51]}
a5 {[%clk 01:18:17]} {[%emt 00:05:20]} 9. h3 {[%clk 01:41:06]} {[%emt
00:03:47]} Be6 {[%clk 01:15:04]} {[%emt 00:03:23]} 10. O-O {[%clk 01:40:35]}
{[%emt 00:00:40]} h6 {[%clk 01:12:44]} {[%emt 00:02:30]} 11. d4 {[%clk
01:32:29]} {[%emt 00:08:17]} exd4 {[%clk 01:08:09]} {[%emt 00:04:45]} 12. Nxd4
{[%clk 01:32:29]} {[%emt 00:00:09]} Nxd4 {[%clk 01:08:08]} {[%emt 00:00:13]} 13.
Qxd4 {[%clk 01:32:30]} {[%emt 00:00:08]} O-O {[%clk 01:07:54]} {[%emt
00:00:24]} 14. g4 {[%clk 01:31:21]} {[%emt 00:01:18]} c5 {[%clk 01:04:41]}
{[%emt 00:03:24]} 15. Qc3 {[%clk 01:30:11]} {[%emt 00:01:20]} d5 {[%clk
00:28:55]} {[%emt 00:35:57]} 16. cxd5 {[%clk 01:25:50]} {[%emt 00:04:30]} Nxd5
{[%clk 00:28:40]} {[%emt 00:00:25]} 17. Qxc5 {[%clk 01:25:10]} {[%emt
00:00:50]} Rc8 {[%clk 00:28:10]} {[%emt 00:00:41]} 18. Qb5 {[%clk 01:24:30]}
{[%emt 00:00:48]} b6 {[%clk 00:18:28]} {[%emt 00:09:53]} 19. a3 {[%clk
01:19:08]} {[%emt 00:05:32]} Rc5 {[%clk 00:16:12]} {[%emt 00:02:25]} 20. Qd3
{[%clk 01:15:48]} {[%emt 00:03:30]} h5 {[%clk 00:11:20]} {[%emt 00:05:03]} 21.
e4 {[%clk 01:11:30]} {[%emt 00:04:28]} Nf4 {[%clk 00:10:58]} {[%emt 00:00:31]}
22. Qxd8 {[%clk 01:11:33]} {[%emt 00:00:07]} Ne2+ {[%clk 00:11:06]} {[%emt
00:00:03]} 23. Kh2 {[%clk 01:11:24]} {[%emt 00:00:18]} Rxd8 {[%clk 00:11:14]}
{[%emt 00:00:04]} 24. Be3 {[%clk 01:10:08]} {[%emt 00:01:24]} Rb5 {[%clk
00:10:46]} {[%emt 00:00:39]} 25. g5 {[%clk 01:07:53]} {[%emt 00:02:24]} Rxb2
{[%clk 00:07:52]} {[%emt 00:03:05]} 26. Rfb1 {[%clk 01:07:24]} {[%emt
00:00:39]} Rc2 {[%clk 00:06:32]} {[%emt 00:01:31]} 27. Rxb6 {[%clk 01:04:13]}
{[%emt 00:03:21]} Rd3 {[%clk 00:06:07]} {[%emt 00:00:35]} 28. g6 {[%clk
01:02:45]} {[%emt 00:01:37]} Rb3 {[%clk 00:04:09]} {[%emt 00:02:09]} 29. Rd1
{[%clk 01:00:44]} {[%emt 00:02:09]} Rc8 {[%clk 00:02:34]} {[%emt 00:01:47]} 30.
Rbd6 {[%clk 00:59:40]} {[%emt 00:01:14]} Kf8 {[%clk 00:01:57]} {[%emt
00:00:46]} 31. Rd8+ {[%emt 00:09:31]} Rxd8 {[%emt 00:00:22]} 32. Rxd8+ Ke7
{[%emt 00:00:13]} 33. gxf7 {[%emt 00:00:24]} Kxf7 {[%emt 00:00:21]} 34. Ra8
{[%clk 00:43:48]} {[%emt 00:06:29]} Rxa3 {[%clk 00:01:28]} {[%emt 00:00:21]} 35.
Bf3 {[%clk 00:43:52]} {[%emt 00:00:06]} Nf4 {[%clk 00:01:12]} {[%emt 00:00:26]}
36. Bd1 {[%clk 00:42:13]} {[%emt 00:01:49]} g5 {[%clk 00:01:10]} {[%emt
00:00:12]} 37. h4 {[%clk 00:41:57]} {[%emt 00:00:26]} Rd3 {[%emt 00:00:27]} 38.
Ba4 {[%emt 00:00:38]} Ne2 {[%emt 00:00:47]} 39. Bb5 {[%emt 00:01:00]} Rxe3
{[%emt 00:00:02]} 40. fxe3 {[%emt 00:00:07]} Nc3 {[%emt 00:00:02]} 41. Be8+
{[%emt 00:00:16]} Kf6 {[%emt 00:00:01]} 42. hxg5+ {[%emt 00:01:05]} Kxg5 {[%emt
00:00:14]} 43. Rxa5+ {[%emt 00:00:09]} Kf6 {[%emt 00:00:02]} 44. Bc6 {[%emt
00:01:56]} h4 {[%emt 00:00:18]} 45. Rc5 {[%emt 00:00:34]} Nd1 {[%emt 00:00:11]}
46. Rh5 {[%emt 00:03:38]} h3 {[%emt 00:00:21]} 47. e5+ {[%emt 00:01:23]} Kg6
{[%emt 00:00:21]} 48. Be8+ {[%emt 00:00:09]} Kg7 {[%emt 00:00:01]} 49. Rg5+
{[%emt 00:05:20]} Kf8 {[%emt 00:00:02]} 50. Bh5 {[%emt 00:00:46]} Nxe3 {[%emt
00:00:03]} 51. Be2 {[%emt 00:00:27]} Kf7 {[%emt 00:00:22]} 52. Rg3 {[%emt
00:00:28]} Ke7 {[%emt 00:00:26]} 1-0